bitfinex/quotes_SOLUSD_20220311
["timestamp","ask_amount","ask_price","bid_price","bid_amount"]
[1647036546586,30.28050207,81.237,81.171,6.157]
[1647036546885,30.28050207,81.237,81.172,130.22932876]
[1647036547088,30.28050207,81.237,81.173,29.4641]
[1647036547289,1.66732436,81.238,81.173,29.4641]
[1647036547685,1.66732436,81.238,81.174,123.5]
[1647036548088,58.83239667,81.239,81.175,6.157]
[1647036548893,58.83239667,81.239,81.181,123.5]
[1647036549091,58.83239667,81.239,81.182,6.156]
[1647036550214,58.83239667,81.239,81.191,123.5]
[1647036551616,1.66732436,81.251,81.201,123.5]
[1647036551915,26.18477933,81.27,81.201,123.5]
[1647036551916,1.66732436,81.256,81.202,6.155]
[1647036552114,1.66732436,81.256,81.203,123.5]
[1647036552313,1.66732436,81.26,81.204,6.155]
[1647036552513,63.51981847,81.261,81.206,123.5]
[1647036552714,61.85249411,81.261,81.207,6.155]
[1647036552912,61.85249411,81.261,81.22,18.4646]
[1647036553113,1.16732436,81.265,81.22,18.4646]
[1647036553315,27.67477957,81.275,81.22,18.4646]
[1647036553914,3.04447957,81.275,81.221,6.154]
[1647036554115,54.15145007,81.274,81.222,2.46881504]
[1647036555117,26.18477933,81.283,81.222,2.46881504]
[1647036555317,26.18477933,81.283,81.231,123.5]
[1647036555515,26.18477933,81.283,81.231,130.74]
[1647036555715,26.18477933,81.283,81.232,6.152]
[1647036556115,46.42794986,81.282,81.232,6.152]
[1647036558022,27.03291886,81.292,81.232,6.152]
[1647036558222,27.03291886,81.292,81.233,23.1907]
[1647036558425,27.03291886,81.292,81.234,6.152]
[1647036558623,27.03291886,81.304,81.241,123.5]
[1647036558825,26.18356599,81.313,81.242,6.152]
[1647036559029,48.7159666,81.312,81.244,123.5]
[1647036559227,48.7159666,81.312,81.245,6.151]
[1647036559628,48.7159666,81.312,81.247,123.5]
[1647036559829,48.7159666,81.312,81.248,6.151]
[1647036561032,26.18356599,81.325,81.251,123.5]
[1647036561232,26.18356599,81.325,81.252,6.151]
[1647036561730,23.0313,81.329,81.252,6.151]
[1647036561930,57.07478177,81.328,81.252,6.151]
[1647036562134,57.07478177,81.328,81.26,18.4546]
[1647036562331,57.07478177,81.328,81.262,2.46881504]
[1647036562733,57.07478177,81.328,81.263,6.15]
[1647036562937,26.18356599,81.327,81.263,6.15]
[1647036566346,27.03291886,81.326,81.263,6.15]
[1647036566843,123.5,81.319,81.263,6.15]
[1647036567043,123.5,81.319,81.253,23.2311]
[1647036567245,123.5,81.317,81.253,23.2311]
[1647036567644,195.67517163,81.316,81.253,23.2311]
[1647036567845,46.29585562,81.315,81.253,23.2311]
[1647036568145,18.4662,81.3,81.253,23.2311]
[1647036569145,63.4214267,81.299,81.253,23.2311]
[1647036585589,63.4214267,81.299,81.254,6.151]
[1647036586893,18.4594,81.31,81.254,6.151]
[1647036587793,22.6673,81.319,81.254,6.151]
[1647036587995,59.82296822,81.318,81.254,6.151]
[1647036588196,53.10702023,81.318,81.254,6.151]
[1647036595823,53.10702023,81.318,81.261,2.05697991]
[1647036596029,53.10702023,81.318,81.262,30.8928]
[1647036601033,15.30754055,81.338,81.27,18.4523]
[1647036601236,15.30754055,81.338,81.271,129.649]
[1647036601533,24.4452,81.349,81.273,123.5]
[1647036601734,3.33701585,81.362,81.275,5.98360072]
[1647036602037,4.96408393,81.38,81.275,5.98360072]
[1647036602038,3.33701585,81.366,81.301,123.5]
[1647036602234,3.33701585,81.368,81.302,28.9056]
[1647036602438,3.33701585,81.369,81.303,24.0152]
[1647036602635,3.33701585,81.368,81.304,6.147]
[1647036603036,57.68977049,81.372,81.305,2.05697991]
[1647036603237,6.71225681,81.371,81.306,6.147]
[1647036604236,6.71225681,81.371,81.31,18.4424]
[1647036604437,6.71225681,81.371,81.311,23.172]
[1647036604638,57.68977049,81.372,81.311,146.672]
[1647036605241,57.68977049,81.372,81.311,23.172]
[1647036605439,57.68977049,81.372,81.312,6.146]
[1647036607342,18.4463,81.37,81.312,6.146]
[1647036608943,57.68977049,81.372,81.312,6.146]
[1647036611446,18.4459,81.37,81.312,6.146]
[1647036618261,123.5,81.369,81.312,6.146]
[1647036620766,52.41962052,81.359,81.312,6.146]
[1647036623086,52.41962052,81.359,81.303,24.0152]
[1647036624688,18.4502,81.35,81.303,24.0152]
[1647036625288,52.41962052,81.359,81.303,24.0152]
[1647036626692,52.41962052,81.359,81.304,6.147]
[1647036627091,6.71291906,81.358,81.304,6.147]
[1647036629695,3.33701585,81.357,81.304,6.147]
[1647036629896,3.33701585,81.357,81.305,23.9087]
[1647036630096,3.33701585,81.357,81.306,6.147]
[1647036630695,10.04993491,81.358,81.306,6.147]
[1647036631098,3.33701585,81.357,81.306,6.147]
[1647036631697,10.04993491,81.358,81.306,6.147]
[1647036640229,10.04993491,81.357,81.306,6.147]
[1647036640406,3.33701585,81.357,81.306,6.147]
[1647036643311,3.33701585,81.356,81.306,6.147]
[1647036643712,3.33701585,81.357,81.306,6.147]
[1647036646720,3.33701585,81.356,81.306,6.147]
[1647036647619,3.33701585,81.355,81.306,6.147]
[1647036647838,3.33701585,81.356,81.306,6.147]
[1647036648838,3.33701585,81.355,81.306,6.147]
[1647036649038,10.04993491,81.355,81.306,6.147]
[1647036649241,3.33701585,81.355,81.306,6.147]
[1647036650243,21.78711585,81.35,81.306,6.147]
[1647036650646,6.71291906,81.349,81.306,6.147]
[1647036651448,18.453,81.34,81.279,22.7346]
[1647036651648,133.54993491,81.339,81.279,22.7346]
[1647036651850,123.5,81.337,81.279,22.7346]
[1647036652045,130.21291906,81.336,81.279,22.7346]
[1647036652245,61.20084111,81.335,81.279,22.7346]
[1647036652446,123.5,81.329,81.279,22.7346]
[1647036652645,123.5,81.329,81.232,77.4087]
[1647036652845,123.5,81.327,81.233,22.7346]
[1647036653046,6.71514739,81.326,81.233,22.7346]
[1647036653245,123.5,81.325,81.233,22.7346]
[1647036653445,123.5,81.325,81.233,50.78089784]
[1647036653646,123.5,81.321,81.234,9.12597199]
[1647036654051,123.5,81.319,81.235,50.18741756]
[1647036654246,123.5,81.319,81.24,18.4599]
[1647036654649,123.5,81.319,81.241,24.0033]
[1647036656248,58.17000624,81.309,81.241,24.0033]
[1647036657149,58.17000624,81.309,81.242,6.151]
[1647036658549,58.17000624,81.309,81.241,24.0033]
[1647036659851,58.17000624,81.309,81.25,18.4578]
[1647036660051,58.17000624,81.309,81.251,22.6539]
[1647036662256,58.17000624,81.309,81.252,6.151]
[1647036662659,58.17000624,81.309,81.26,18.4553]
[1647036662853,58.17000624,81.309,81.261,6.151]
[1647036663054,58.17000624,81.309,81.261,30.8948]
[1647036664257,58.17000624,81.309,81.27,18.4522]
[1647036666057,58.17000624,81.309,81.261,30.8948]
[1647036668561,58.17000624,81.309,81.261,24.7438]
[1647036672866,58.17000624,81.309,81.261,23.22190402]
[1647036674470,58.17000624,81.309,81.261,146.72190402]
[1647036674668,58.17000624,81.309,81.262,6.151]
[1647036675277,58.17000624,81.309,81.27,18.4531]
[1647036675472,58.17000624,81.309,81.271,6.15]
[1647036677473,1.66169539,81.325,81.271,6.15]
[1647036677776,1.66169539,81.324,81.272,23.6785]
[1647036677977,1.66169539,81.324,81.273,6.15]
[1647036678376,54.39606951,81.323,81.273,6.15]
[1647036678876,56.0577649,81.323,81.273,6.15]
[1647036679577,1.66169539,81.321,81.273,6.15]
[1647036679777,1.66169539,81.317,81.273,6.15]
[1647036679977,1.66169539,81.317,81.272,23.6785]
[1647036680177,1.66169539,81.315,81.272,23.6785]
[1647036680879,1.66169539,81.315,81.253,6.15]
[1647036681277,1.66169539,81.314,81.253,6.15]
[1647036682081,1.66169539,81.314,81.26,18.4553]
[1647036685280,1.66169539,81.314,81.253,6.15]
[1647036685482,1.66169539,81.313,81.253,6.15]
[1647036686484,1.66169539,81.312,81.253,6.15]
[1647036686683,1.66169539,81.313,81.253,6.15]
[1647036687086,18.4593,81.31,81.253,6.15]
[1647036687284,1.66169539,81.306,81.253,6.15]
[1647036691206,1.66169539,81.306,81.254,23.1719]
[1647036691405,1.66169539,81.307,81.254,23.1719]
[1647036691606,18.4593,81.31,81.254,23.1719]
[1647036691607,1.66169539,81.308,81.254,23.1719]
[1647036692706,1.66169539,81.307,81.254,23.1719]
[1647036692907,1.66169539,81.308,81.254,23.1719]
[1647036694208,1.66169539,81.315,81.261,123.5]
[1647036694609,1.66169539,81.315,81.263,123.5]
[1647036694809,1.66169539,81.329,81.263,123.5]
[1647036695008,1.66169539,81.329,81.265,123.5]
[1647036695209,1.66169539,81.33,81.265,123.5]
[1647036695612,1.66169539,81.33,81.267,123.5]
[1647036696213,1.66169539,81.33,81.271,123.5]
[1647036696411,1.66169539,81.331,81.273,123.5]
[1647036696818,1.66169539,81.332,81.273,123.5]
[1647036697514,1.66169539,81.333,81.273,123.5]
[1647036697917,1.66169539,81.334,81.273,123.5]
[1647036698117,1.66169539,81.334,81.28,18.4492]
[1647036698517,1.66169539,81.335,81.28,18.4492]
[1647036698917,1.66169539,81.334,81.28,18.4492]
[1647036699115,1.66169539,81.335,81.28,18.4492]
[1647036700721,48.98313538,81.336,81.28,18.4492]
[1647036701316,1.66169539,81.335,81.28,18.4492]
[1647036701519,1.66169539,81.335,81.29,18.4467]
[1647036701720,1.66169539,81.342,81.291,146.4063]
[1647036702118,1.66169539,81.343,81.291,146.4063]
[1647036703018,1.66169539,81.343,81.301,123.5]
[1647036703218,1.66169539,81.343,81.302,22.9063]
[1647036703418,1.66169539,81.353,81.302,22.9063]
[1647036703622,0.66169539,81.354,81.302,22.9063]
[1647036703820,52.67850568,81.36,81.302,22.9063]
[1647036704320,52.67850568,81.36,81.311,123.5]
[1647036704522,24.9082,81.379,81.312,22.9063]
[1647036705523,51.58422608,81.378,81.312,22.9063]
[1647036705924,15.59618099,81.381,81.313,123.5]
[1647036706129,15.59618099,81.381,81.321,123.5]
[1647036706325,15.59618099,81.393,81.323,123.5]
[1647036706925,51.22484349,81.392,81.323,123.5]
[1647036707125,51.22484349,81.392,81.331,123.5]
[1647036707525,51.22484349,81.392,81.33,18.4378]
[1647036707726,18.4412,81.39,81.322,24.7034]
[1647036708130,34.03738099,81.39,81.322,24.7034]
[1647036710032,15.59618099,81.39,81.322,24.7034]
[1647036710231,15.59618099,81.39,81.33,18.439]
[1647036718144,15.59618099,81.39,81.331,123.5]
[1647036718341,15.59618099,81.39,81.332,23.4375]
[1647036718539,51.22484349,81.392,81.332,23.4375]
[1647036722764,15.59618099,81.394,81.332,23.4375]
[1647036722964,15.59618099,81.394,81.34,18.4366]
[1647036723765,59.61574709,81.393,81.34,18.4366]
[1647036743790,59.61574709,81.393,81.332,23.4375]
[1647036751492,59.61574709,81.393,81.34,18.4367]
[1647036752092,59.61574709,81.393,81.341,24.0076]
[1647036769805,123.5,81.389,81.313,23.3451]
[1647036770004,83.27148068,81.393,81.314,23.7866]
[1647036770005,123.5,81.387,81.314,23.7866]
[1647036770609,123.5,81.385,81.314,23.7866]
[1647036771007,18.4444,81.38,81.314,23.7866]
[1647036771909,24.0989,81.386,81.314,23.7866]
[1647036773113,24.0989,81.386,81.32,18.4408]
[1647036776413,24.0989,81.386,81.32,23.1608]
[1647036776815,24.0989,81.386,81.321,123.5]
[1647036777014,24.0989,81.386,81.34,18.4369]
[1647036777219,24.0989,81.386,81.341,24.4209]
[1647036780343,3.33701585,81.408,81.35,18.4342]
[1647036780541,3.33701585,81.408,81.351,123.5]
[1647036780744,3.33701585,81.428,81.351,123.5]
[1647036780942,3.33701585,81.428,81.353,123.5]
[1647036781141,3.33701585,81.429,81.353,123.5]
[1647036781341,49.54896729,81.428,81.353,123.5]
[1647036782241,49.54896729,81.428,81.36,18.427]
[1647036782542,49.54896729,81.428,81.361,123.5]
[1647036782942,49.54896729,81.428,81.363,123.5]
[1647036783545,22.8554,81.438,81.363,123.5]
[1647036784145,22.8554,81.438,81.38,18.4276]
[1647036784341,22.8554,81.438,81.381,23.951]
[1647036784543,49.14383431,81.437,81.381,23.951]
[1647036785847,22.8554,81.438,81.39,18.4254]
[1647036786044,13.96268765,81.453,81.391,23.951]
[1647036786245,22.7125,81.461,81.391,23.951]
[1647036786447,6.70476587,81.46,81.391,23.951]
[1647036786847,48.44794789,81.459,81.391,23.951]
[1647036787449,23.65573359,81.46,81.4,18.4233]
[1647036787648,22.7125,81.461,81.401,24.9529]
[1647036788450,64.18500669,81.46,81.401,24.9529]
[1647036789959,22.7125,81.461,81.401,24.9529]
[1647036790366,23.0466,81.474,81.401,24.9529]
[1647036790559,23.0466,81.474,81.402,123.5]
[1647036790960,55.92089976,81.473,81.402,123.5]
[1647036791159,55.92089976,81.473,81.41,18.4211]
[1647036791366,55.92089976,81.473,81.41,23.9111]
[1647036791765,55.92089976,81.473,81.411,22.7369]
[1647036791966,22.6049,81.486,81.412,123.5]
[1647036792369,22.6049,81.486,81.42,18.4151]
[1647036792564,22.6049,81.486,81.421,22.7369]
[1647036796670,22.6049,81.486,81.43,18.4142]
[1647036796875,22.6049,81.486,81.431,24.225]
[1647036797570,60.15756115,81.485,81.431,24.225]
[1647036800489,74.80905076,81.485,81.431,24.225]
[1647036802490,123.5,81.479,81.413,23.3279]
[1647036802688,123.5,81.479,81.391,23.1914]
[1647036802889,123.5,81.477,81.391,23.1914]
[1647036803290,65.80119162,81.478,81.391,23.1914]
[1647036803291,123.5,81.475,81.391,23.1914]
[1647036803489,123.5,81.469,81.391,23.1914]
[1647036803789,23.3579,81.469,81.391,23.1914]
[1647036803990,3.04447957,81.468,81.391,23.1914]
[1647036806206,38.00938961,81.469,81.4,18.4225]
[1647036806407,38.00938961,81.469,81.401,23.2372]
[1647036807507,3.04447957,81.468,81.401,23.2372]
[1647036809710,38.00938961,81.469,81.401,23.2372]
[1647036815319,23.3579,81.469,81.401,23.2372]
[1647036816322,123.5,81.468,81.401,23.2372]
[1647036816544,23.3579,81.469,81.401,23.2372]
[1647036818548,23.3579,81.469,81.41,18.42]
[1647036818750,23.3579,81.469,81.411,24.0404]
[1647036821851,6.38149542,81.494,81.42,18.4176]
[1647036822054,22.5872,81.483,81.421,24.7561]
[1647036822851,62.92785771,81.482,81.421,24.7561]
[1647036823252,62.92785771,81.482,81.43,18.4124]
[1647036823653,1.6722257,81.473,81.43,18.4124]
[1647036824153,1.6722257,81.474,81.431,22.8866]
[1647036824958,1.6722257,81.473,81.431,22.8866]
[1647036825361,1.6722257,81.474,81.431,22.8866]
[1647036825559,1.6722257,81.473,81.431,22.8866]
[1647036826059,1.6722257,81.468,81.431,22.8866]
[1647036826259,1.6722257,81.463,81.431,22.8866]
[1647036826760,1.6722257,81.462,81.431,22.8866]
[1647036827360,1.6722257,81.461,81.431,22.8866]
[1647036827964,1.6722257,81.458,81.431,22.8866]
[1647036828164,57.23586306,81.457,81.413,23.4056]
[1647036828361,57.23586306,81.457,81.414,22.7408]
[1647036828963,58.90808876,81.457,81.414,22.7408]
[1647036829661,57.23586306,81.457,81.414,22.7408]
[1647036829862,58.90808876,81.457,81.414,22.7408]
[1647036830165,57.23586306,81.457,81.414,22.7408]
[1647036830363,1.6722257,81.448,81.414,22.7408]
[1647036830568,1.6722257,81.446,81.381,24.6125]
[1647036830763,1.6722257,81.442,81.382,24.199]
[1647036830962,1.6722257,81.44,81.382,24.199]
[1647036831363,1.6722257,81.439,81.382,24.199]
[1647036831966,1.6722257,81.438,81.382,24.199]
[1647036832164,24.5817257,81.439,81.382,24.199]
[1647036832874,24.5817257,81.439,81.341,18.8606]
[1647036833066,18.4323,81.43,81.357,23.0926]
[1647036833266,187.13612722,81.429,81.357,23.0926]
[1647036833465,1.6722257,81.421,81.357,23.0926]
[1647036833665,1.6722257,81.414,81.345,24.6761]
[1647036833864,1.6722257,81.42,81.346,23.0926]
[1647036834070,123.5,81.409,81.346,23.0926]
[1647036834363,1.6722257,81.407,81.321,23.0926]
[1647036834564,1.6722257,81.406,81.321,23.0926]
[1647036834766,123.5,81.401,81.321,23.0926]
[1647036834966,128.88,81.401,81.321,23.0926]
[1647036835369,123.5,81.389,81.321,23.0926]
[1647036836969,18.4419,81.39,81.321,23.0926]
[1647036837273,22.21594725,81.4,81.321,23.0926]
[1647036837668,3.04447957,81.399,81.321,23.0926]
[1647036841171,3.04447957,81.399,81.322,123.5]
[1647036841372,3.04447957,81.399,81.331,123.5]
[1647036841577,3.04447957,81.399,81.333,123.5]
[1647036842177,3.04447957,81.415,81.333,123.5]
[1647036842574,18.13146768,81.429,81.334,2.87113835]
[1647036842803,18.13146768,81.429,81.336,123.5]
[1647036842977,54.94985232,81.428,81.336,123.5]
[1647036843178,54.94985232,81.428,81.341,123.5]
[1647036843375,54.94985232,81.428,81.343,123.5]
[1647036843978,54.94985232,81.428,81.344,2.87113835]
[1647036844578,54.94985232,81.428,81.346,123.5]
[1647036844976,54.94985232,81.428,81.347,2.87113835]
[1647036845177,54.94985232,81.428,81.351,123.5]
[1647036845776,54.94985232,81.428,81.353,123.5]
[1647036845977,54.94985232,81.428,81.352,23.5832]
[1647036847977,54.94985232,81.428,81.353,123.5]
[1647036848980,54.94985232,81.428,81.361,123.5]
[1647036849383,54.94985232,81.428,81.363,123.5]
[1647036850081,54.94985232,81.428,81.37,18.4287]
[1647036854688,54.44985232,81.428,81.37,18.4287]
[1647036854885,54.44985232,81.428,81.371,0.57217181]
[1647036859616,54.44985232,81.428,81.362,22.6261]
[1647036859816,3.04447957,81.427,81.362,22.6261]
[1647036860619,3.04447957,81.427,81.362,32.0207656]
[1647036861020,4.71670527,81.427,81.362,32.0207656]
[1647036861219,18.4347,81.42,81.362,32.0207656]
[1647036861418,18.4347,81.42,81.362,22.6261]
[1647036863318,1.6722257,81.422,81.362,22.6261]
[1647036863519,23.2524,81.427,81.362,22.6261]
[1647036864320,54.44985232,81.428,81.363,123.5]
[1647036865121,54.44985232,81.428,81.371,1.28010478]
[1647036865935,54.44985232,81.428,81.372,24.3904]
[1647036866836,1.6722257,81.435,81.372,24.3904]
[1647036867034,1.6722257,81.437,81.373,123.5]
[1647036867236,1.6722257,81.438,81.38,18.4266]
[1647036867436,1.6722257,81.442,81.381,123.5]
[1647036867635,24.10204673,81.458,81.381,123.5]
[1647036867636,1.6722257,81.443,81.381,123.5]
[1647036867836,1.6722257,81.441,81.381,123.5]
[1647036868038,1.6722257,81.441,81.385,123.5]
[1647036868538,65.38387159,81.442,81.385,123.5]
[1647036868837,65.38387159,81.442,81.384,8.41803902]
[1647036869262,1.6722257,81.438,81.384,8.41803902]
[1647036869864,1.6722257,81.434,81.384,8.41803902]
[1647036870275,1.6722257,81.439,81.384,8.41803902]
[1647036870666,23.7028,81.457,81.385,123.5]
[1647036870667,1.6722257,81.441,81.385,123.5]
[1647036870864,1.6722257,81.443,81.385,123.5]
[1647036871063,1.6722257,81.447,81.385,123.5]
[1647036871263,1.6722257,81.447,81.384,8.41803902]
[1647036871463,50.8019619,81.448,81.384,8.41803902]
[1647036871668,1.6722257,81.447,81.384,8.41803902]
[1647036872364,1.6722257,81.446,81.384,8.41803902]
[1647036872564,1.6722257,81.447,81.384,8.41803902]
[1647036872765,50.8019619,81.448,81.384,8.41803902]
[1647036874071,49.1297362,81.448,81.384,8.41803902]
[1647036876773,50.8019619,81.448,81.384,8.41803902]
[1647036877771,49.1297362,81.448,81.384,8.41803902]
[1647036877971,1.6722257,81.447,81.384,8.41803902]
[1647036878176,50.8019619,81.448,81.384,8.41803902]
[1647036878375,49.1297362,81.448,81.384,8.41803902]
[1647036878873,50.8019619,81.448,81.384,8.41803902]
[1647036879274,49.1297362,81.448,81.384,8.41803902]
[1647036880977,18.4296,81.44,81.384,8.41803902]
[1647036882681,23.4318,81.447,81.384,8.41803902]
[1647036884881,123.5,81.446,81.384,8.41803902]
[1647036885083,23.4318,81.447,81.384,8.41803902]
[1647036887084,18.4296,81.44,81.384,8.41803902]
[1647036888187,23.4318,81.447,81.384,8.41803902]
[1647036889285,1.6722257,81.446,81.384,8.41803902]
[1647036889686,1.6722257,81.446,81.373,23.8469]
[1647036889886,1.6722257,81.445,81.373,23.8469]
[1647036890588,1.6722257,81.444,81.374,9.02938476]
[1647036890989,1.6722257,81.444,81.375,24.4159]
[1647036891189,18.4297,81.44,81.375,24.4159]
[1647036893391,20.1019257,81.44,81.375,24.4159]
[1647036894394,1.6722257,81.438,81.375,24.4159]
[1647036894897,23.8136,81.437,81.375,24.4159]
[1647036895095,59.40768076,81.429,81.375,24.4159]
[1647036895594,1.6722257,81.428,81.375,24.4159]
[1647036898599,61.07990646,81.429,81.375,24.4159]
[1647036900501,59.40768076,81.429,81.375,24.4159]
[1647036900701,61.07990646,81.429,81.375,24.4159]
[1647036901402,59.40768076,81.429,81.375,24.4159]
[1647036902003,61.07990646,81.429,81.375,24.4159]
[1647036902827,59.40768076,81.429,81.375,24.4159]
[1647036905014,61.07990646,81.429,81.375,24.4159]
[1647036908021,59.40768076,81.429,81.375,24.4159]
[1647036908519,61.07990646,81.429,81.375,24.4159]
[1647036908919,59.40768076,81.429,81.375,24.4159]
[1647036911347,23.4568,81.428,81.375,24.4159]
[1647036911748,23.4568,81.428,81.376,6.142]
[1647036912548,23.4568,81.428,81.377,1.32043968]
[1647036912749,23.4568,81.428,81.378,6.142]
[1647036913750,23.4568,81.428,81.377,1.32043968]
[1647036914452,23.4568,81.428,81.375,24.4159]
[1647036915352,23.4568,81.428,81.376,9.22554187]
[1647036916652,23.4568,81.428,81.375,24.4159]
[1647036916853,23.4568,81.428,81.376,6.142]
[1647036917054,25.1290257,81.428,81.376,6.142]
[1647036917254,23.4568,81.428,81.376,6.142]
[1647036917457,25.1290257,81.428,81.376,6.142]
[1647036917654,23.4568,81.428,81.377,8.83223091]
[1647036917854,23.4568,81.428,81.378,6.142]
[1647036932174,23.4568,81.428,81.379,9.07076359]
[1647036932774,22.9568,81.428,81.379,9.07076359]
[1647036933176,22.9568,81.428,81.378,6.142]
[1647036934078,1.6722257,81.424,81.378,6.142]
[1647036934277,1.6722257,81.424,81.34,18.4358]
[1647036934278,1.6722257,81.422,81.33,21.30487715]
[1647036934480,1.6722257,81.407,81.343,24.8049]
[1647036934678,1.6722257,81.402,81.343,24.8049]
[1647036935077,18.4446,81.39,81.343,24.8049]
[1647036935278,18.4446,81.39,81.328,22.6392]
[1647036935279,123.5,81.389,81.328,22.6392]
[1647036935680,123.5,81.389,81.3,24.0188]
[1647036935681,144.86113571,81.389,81.3,24.0188]
[1647036935877,123.5,81.387,81.301,46.02822921]
[1647036936079,123.5,81.379,81.301,46.02822921]
[1647036936278,123.5,81.379,81.302,29.09204497]
[1647036936699,126.54447957,81.379,81.303,21.28012921]
[1647036937302,144.86113571,81.379,81.303,21.28012921]
[1647036937501,18.4456,81.37,81.303,21.28012921]
[1647036937701,64.29225985,81.369,81.303,21.28012921]
[1647036939005,64.29225985,81.369,81.302,7.81191576]
[1647036939403,123.5,81.368,81.302,7.81191576]
[1647036940604,3.04447957,81.367,81.301,24.7481]
[1647036941007,123.5,81.359,81.301,24.7481]
[1647036941403,3.04447957,81.358,81.301,24.7481]
[1647036942402,3.04447957,81.358,81.28,8.76240092]
[1647036942403,3.04447957,81.358,81.302,6.147]
[1647036942602,3.04447957,81.358,81.28,8.76240092]
[1647036942603,123.5,81.347,81.281,29.8271]
[1647036943406,3.04447957,81.346,81.281,29.8271]
[1647036943610,123.5,81.339,81.281,29.8271]
[1647036944007,3.04447957,81.338,81.281,29.8271]
[1647036945007,3.04447957,81.338,81.281,23.6801]
[1647036945207,57.29145935,81.329,81.281,23.6801]
[1647036946409,57.29145935,81.329,81.274,24.5429]
[1647036946607,123.5,81.328,81.274,24.5429]
[1647036946807,126.54447957,81.328,81.274,24.5429]
[1647036947008,3.04447957,81.327,81.274,24.5429]
[1647036947508,123.5,81.319,81.256,6.15]
[1647036949811,18.4592,81.31,81.256,6.15]
[1647036950109,63.14183406,81.309,81.256,6.15]
[1647036950511,123.5,81.308,81.256,6.15]
[1647036953411,63.14183406,81.309,81.256,6.15]
[1647036956623,63.14183406,81.309,81.26,18.4556]
[1647036956823,63.14183406,81.309,81.261,6.151]
[1647036958020,63.14183406,81.309,81.256,6.151]
[1647036958220,63.14183406,81.309,81.255,24.7269]
[1647036962225,63.14183406,81.309,81.256,6.151]
[1647036969839,3.04447957,81.308,81.255,24.7269]
[1647036970961,2.54447957,81.308,81.255,24.7269]
[1647036971363,63.14183406,81.309,81.255,24.7269]
[1647036972864,63.14183406,81.309,81.26,18.4555]
[1647036973064,63.14183406,81.309,81.261,6.151]
[1647036975265,63.14183406,81.309,81.27,18.4532]
[1647036975864,63.14183406,81.309,81.271,6.15]
[1647036976667,63.14183406,81.309,81.261,6.15]
[1647036984681,3.04447957,81.308,81.261,6.15]
[1647036985779,20.43438502,81.308,81.261,6.15]
[1647036985980,123.5,81.307,81.261,6.15]
[1647036986181,126.54447957,81.307,81.261,6.15]
[1647036986481,123.5,81.305,81.261,6.15]
[1647036986781,123.5,81.303,81.261,6.15]
[1647036987182,18.4615,81.3,81.261,6.15]
[1647036987582,3.04447957,81.299,81.261,6.15]
[1647036998020,3.04447957,81.299,81.256,6.151]
[1647036998224,17.38990545,81.302,81.256,6.151]
[1647036998922,63.14183406,81.309,81.256,6.151]
[1647037003832,63.14183406,81.309,81.26,18.455]
[1647037004034,63.14183406,81.309,81.261,13.42040568]
[1647037010265,63.14183406,81.309,81.261,6.151]
[1647037016372,63.14183406,81.309,81.256,6.151]
[1647037018173,63.14183406,81.309,81.26,18.4553]
[1647037018373,63.14183406,81.309,81.261,6.151]
[1647037033596,63.14183406,81.309,81.255,24.7269]
[1647037036321,63.14183406,81.309,81.26,18.4554]
[1647037039827,63.14183406,81.309,81.255,24.7269]
[1647037041329,63.14183406,81.309,81.26,18.4554]
[1647037053674,63.14183406,81.309,81.261,6.151]
[1647037055279,18.4614,81.3,81.2,61.5431]
[1647037055477,23.5454,81.299,81.237,23.4988]
[1647037056079,23.5454,81.299,81.238,27.194453]
[1647037056280,23.5454,81.299,81.238,34.17234237]
[1647037056479,23.5454,81.299,81.239,21.042453]
[1647037056680,23.5454,81.299,81.24,6.152]
[1647037057381,23.5454,81.299,81.238,6.97788937]
[1647037057382,23.5454,81.299,81.239,6.152]